bitfinex/quotes_ETHUSD_20241108
["timestamp","ask_amount","ask_price","bid_price","bid_amount"]
[1731064768321,0.1667,2922.2,2922.1,1.81230697]
[1731064768501,0.1667,2922.2,2922.1,4.63806969]
[1731064768702,0.1667,2922.2,2922.1,4.08806969]
[1731064772020,0.1667,2922.2,2922.1,0.7985]
[1731064773217,0.1667,2922.2,2921.8,0.55]
[1731064773429,0.1667,2922.2,2921.4,0.7968]
[1731064773646,0.1667,2922.2,2921.5,0.37968]
[1731064774514,0.7665,2922.1,2921.1,0.7968]
[1731064774698,0.7665,2922.1,2920.8,0.7968]
[1731064774908,3.0,2922.1,2920.8,0.7968]
[1731064775221,0.7665,2922.0,2920.8,0.7968]
[1731064775743,0.7665,2922.0,2920.5,0.7968]
[1731064775938,0.8217,2921.8,2920.6,0.82068]
[1731064776244,3.0,2921.8,2920.3,0.3563687]
[1731064776539,0.8217,2921.7,2920.1,0.8109]
[1731064776742,0.8217,2921.7,2920.6,3.28956969]
[1731064776946,0.8217,2921.7,2920.9,4.10046969]
[1731064777320,0.8217,2921.7,2920.9,3.28956969]
[1731064779777,0.8331,2922.1,2921.2,4.09276969]
[1731064780084,0.8331,2922.1,2921.5,3.28956969]
[1731064780231,0.1667,2922.2,2921.8,4.09276969]
[1731064780739,0.1667,2922.2,2921.9,0.06844059]
[1731064780938,0.1667,2922.2,2922.1,3.83956969]
[1731064781247,0.1667,2922.2,2922.1,4.27852666]
[1731064782567,0.1667,2922.2,2922.1,5.08242666]
[1731064785740,0.1667,2922.2,2922.1,3.72852666]
[1731064785972,0.1667,2922.2,2921.5,4.07346969]
[1731064786184,0.1667,2922.2,2921.6,3.0]
[1731064786546,0.1667,2922.2,2921.8,3.28956969]
[1731064788673,0.1667,2922.2,2921.9,0.55]
[1731064788839,0.1667,2922.2,2922.0,0.38395697]
[1731064796251,0.1667,2922.2,2921.1,0.7716]
[1731064796252,0.7821,2922.1,2921.1,0.7716]
[1731064796454,0.7821,2922.1,2921.1,4.06116969]
[1731064796658,0.7821,2922.1,2921.4,3.28956969]
[1731064797074,0.1667,2922.2,2921.4,3.28956969]
[1731064797292,0.1667,2922.2,2921.6,0.7903]
[1731064798155,0.7538,2922.1,2921.4,3.28956969]
[1731064798504,0.7538,2922.1,2921.2,3.0]
[1731064798505,0.7538,2922.1,2921.1,3.0]
[1731064799363,0.7538,2922.1,2921.0,4.11136969]
[1731064799707,0.7538,2922.1,2921.1,0.44403267]
[1731064801512,0.7538,2922.1,2920.8,3.0]
[1731064801714,0.7538,2922.1,2920.4,0.7681]
[1731064801715,0.77,2921.8,2920.4,3.28956969]
[1731064801902,0.77,2921.7,2920.4,3.28956969]
[1731064802215,0.77,2921.6,2920.4,3.28956969]
[1731064802376,0.77,2921.5,2920.5,0.32895697]
[1731064803009,0.764,2921.4,2920.1,3.28956969]
[1731064803193,0.764,2921.4,2920.1,3.74452302]
[1731064803518,0.764,2921.4,2920.5,0.8273]
[1731064805191,0.764,2921.4,2920.7,3.28956969]
[1731064805505,0.764,2921.4,2920.8,0.06846513]
[1731064805708,0.764,2921.4,2920.8,0.33580348]
[1731064806777,0.764,2921.4,2920.1,3.8169]
[1731064806973,0.764,2921.4,2920.1,3.0]
[1731064807175,0.7808,2921.2,2920.0,3.28956969]
[1731064809590,0.7808,2921.2,2920.1,0.35640502]
[1731064812025,0.7808,2921.2,2920.3,3.28956969]
[1731064812228,0.7808,2921.2,2920.4,0.38395697]
[1731064812480,0.7808,2921.2,2920.9,3.28956969]
[1731064812589,0.8176,2922.0,2920.9,3.28956969]
[1731064812790,0.8176,2922.0,2921.4,3.28956969]
[1731064814005,0.8176,2922.0,2921.1,3.28956969]
[1731064814204,0.8176,2922.0,2921.1,3.61852666]
[1731064819646,0.8176,2922.0,2921.1,0.32895697]
[1731064819810,0.8176,2922.0,2920.6,3.0]
[1731064820506,0.8272,2921.9,2920.6,3.0]
[1731064820909,0.8272,2921.9,2920.7,0.55]
[1731064821334,0.7733,2921.8,2920.5,3.28956969]
[1731064821538,0.95782153,2921.7,2920.6,0.36735267]
[1731064821704,0.7733,2921.7,2920.6,0.36735267]
[1731064824649,0.7733,2921.7,2920.6,4.15085267]
[1731064825541,0.7733,2921.7,2920.6,3.36735267]
[1731064825735,0.7733,2921.7,2920.6,0.36735267]
[1731064826055,0.7733,2921.7,2920.5,0.55]
[1731064826211,0.7733,2921.7,2920.4,0.38395697]
[1731064827657,0.7733,2921.7,2920.5,0.06847118]
[1731064828228,0.7733,2921.7,2920.4,0.38395697]
[1731064828935,0.7733,2921.7,2920.5,0.06847116]
[1731064829140,0.95782153,2921.7,2920.5,0.55]
[1731064829350,0.7733,2921.7,2920.5,0.55]
[1731064829661,0.7733,2921.7,2920.7,0.55]
[1731064834163,0.7733,2921.7,2920.7,0.05]
[1731064834460,0.7733,2921.7,2920.6,3.28956969]
[1731064834622,0.95782153,2921.7,2920.7,0.32895697]
[1731064835868,0.7733,2921.7,2920.7,0.32895697]
[1731064836027,0.7733,2921.7,2920.7,3.32895697]
[1731064836368,0.7733,2921.7,2920.8,0.8215]
[1731064837037,0.7733,2921.7,2920.9,3.28956969]
[1731064837242,0.7733,2921.7,2921.0,0.55]
[1731064837434,0.7838,2922.1,2921.2,3.28956969]
[1731064837639,0.7838,2922.1,2921.3,0.8122]
[1731064838262,0.7838,2922.1,2921.2,3.28956969]
[1731064840334,0.7838,2922.1,2921.2,2.86502869]
[1731064840670,0.7838,2922.1,2921.3,0.32489857]
[1731064841630,0.7838,2922.1,2921.3,3.32489857]
[1731064841975,0.1667,2922.2,2921.5,4.11946969]
[1731064842127,0.1667,2922.2,2921.8,3.28956969]
[1731064842331,0.1667,2922.2,2922.1,3.28956969]
[1731064842604,0.1667,2922.2,2922.1,3.67352666]
[1731064842909,0.1667,2922.2,2922.1,0.38395697]
[1731064843197,0.1667,2922.2,2921.9,3.55]
[1731064843500,0.1667,2922.2,2922.1,3.83956969]
[1731064843712,0.1667,2922.2,2922.1,6.83956969]
[1731064843897,0.1667,2922.2,2922.1,6.90799872]
[1731064844209,0.1667,2922.2,2922.1,6.83956969]
[1731064844506,0.1667,2922.2,2922.1,7.60394666]
[1731064845384,0.1667,2922.2,2922.1,7.61394666]
[1731064846091,0.1667,2922.2,2922.1,4.32437697]
[1731064850229,0.1667,2922.2,2922.1,5.13587697]
[1731064851690,0.1667,2922.2,2922.1,5.5808303]
[1731064852702,0.7603,2923.8,2922.6,0.7501]
[1731064852907,0.7603,2923.8,2923.0,3.28956969]
[1731064853108,0.7603,2923.8,2923.0,3.61852666]
[1731064855627,0.7603,2923.8,2923.1,0.55]
[1731064855810,0.7603,2923.8,2923.1,1.3072]
[1731064856015,0.7603,2923.8,2923.4,3.28956969]
[1731064858393,0.05133419,2923.9,2923.5,0.55]
[1731064858591,0.05133419,2923.9,2923.6,0.38395697]
[1731064859013,0.05133419,2923.9,2923.7,3.28956969]
[1731064861920,0.05133419,2923.9,2923.6,0.38395697]
[1731064862246,0.05133419,2923.9,2923.4,3.28956969]
[1731064863308,0.05133419,2923.9,2923.5,0.762]
[1731064863509,0.05133419,2923.9,2923.7,3.28956969]
[1731064863746,0.05133419,2923.9,2923.8,0.55]
[1731064866423,0.05133419,2923.9,2923.8,4.3064]
[1731064866625,0.05133419,2923.9,2923.8,5.06799697]
[1731064866817,0.05133419,2923.9,2923.8,5.07799697]
[1731064871375,0.80863419,2923.9,2923.8,0.76159697]
[1731064871680,0.80863419,2923.9,2923.8,3.28956969]
[1731064872639,0.80863419,2923.9,2923.5,6.28956969]
[1731064873285,0.80863419,2923.9,2923.6,0.06839733]
[1731064873653,0.80863419,2923.9,2923.5,6.28956969]
[1731064873856,0.80863419,2923.9,2923.6,0.62895697]
[1731064875838,0.05133419,2923.9,2923.8,3.28956969]
[1731064876067,0.05133419,2923.9,2923.7,0.55]
[1731064876238,0.7711,2923.8,2923.7,0.55]
[1731064877039,0.7711,2923.8,2923.6,0.62895697]
[1731064877244,0.7711,2923.8,2923.3,3.0]
[1731064877551,0.7711,2923.8,2923.0,3.32895697]
[1731064877750,0.7711,2923.8,2923.0,0.32895697]
[1731064879053,0.7711,2923.8,2923.0,3.32895697]
[1731064879240,0.7711,2923.8,2923.0,0.32895697]
[1731064879466,0.7711,2923.8,2922.7,3.35660545]
[1731064879665,0.7711,2923.8,2922.7,0.35660545]
[1731064881482,0.7711,2923.8,2922.3,3.73452302]
[1731064881684,0.7711,2923.8,2922.4,0.55]
[1731064881982,0.7711,2923.8,2922.9,3.28956969]
[1731064882184,0.7711,2923.8,2923.0,0.39736448]
[1731064882485,0.7711,2923.8,2923.1,0.06840344]
[1731064882692,0.7711,2923.8,2923.0,0.32895697]
[1731064882880,0.7711,2923.8,2922.4,3.83956969]
[1731064884582,0.7711,2923.8,2922.5,3.0]
[1731064884753,0.7711,2923.8,2922.6,0.68395697]
[1731064885457,3.81,2923.6,2922.3,0.35672408]
[1731064885661,0.7695,2923.5,2921.7,3.28956969]
[1731064885858,0.7695,2923.5,2921.5,0.7716]
[1731064885859,0.7695,2923.5,2922.0,3.28956969]
[1731064886049,0.7695,2923.5,2922.1,0.39738653]
[1731064886548,0.7695,2923.5,2922.1,0.32895697]
[1731064886885,0.7695,2923.5,2922.1,3.32895697]
[1731064887050,0.7695,2923.5,2922.2,0.0684281]
[1731064887249,0.7695,2923.5,2922.2,0.55]
[1731064887454,0.7695,2923.5,2922.3,0.3878957]
[1731064893264,0.7695,2923.5,2922.1,3.24373267]
[1731064902000,0.7695,2923.5,2922.6,3.28956969]
[1731064902405,0.7695,2923.5,2922.7,0.55]
[1731064902746,0.7695,2923.5,2922.8,0.38395697]
[1731064903345,0.7695,2923.5,2922.9,3.28956969]
[1731064903709,0.7695,2923.5,2923.0,0.06841069]
[1731064904547,0.7695,2923.5,2923.0,0.55]
[1731064905707,0.7695,2923.5,2922.9,3.28956969]
[1731064906052,0.7695,2923.5,2922.8,0.38395697]
[1731064906349,0.7695,2923.5,2922.0,0.49326556]
[1731064906350,0.7695,2923.5,2922.3,3.28956969]
[1731064906548,0.7695,2923.5,2922.0,3.28956969]
[1731064908453,0.7695,2923.5,2922.1,3.55]
[1731064909545,0.7695,2923.5,2922.4,0.55]
[1731064910678,0.7695,2923.5,2922.3,3.28956969]
[1731064911391,0.7695,2923.5,2922.3,3.91852666]
[1731064911572,0.7695,2923.5,2922.4,0.06842573]
[1731064911772,0.7695,2923.5,2922.4,0.55]
[1731064914286,0.7695,2923.5,2922.8,3.28956969]
[1731064917766,0.7695,2923.5,2922.6,0.55]
[1731064917911,0.7695,2923.5,2922.7,0.46261697]
[1731064919480,0.7695,2923.5,2922.8,0.06841671]
[1731064920711,0.7695,2923.5,2922.7,0.46261697]
[1731064921292,0.7695,2923.5,2922.4,0.55]
[1731064922388,0.7695,2923.5,2922.4,3.55]
[1731064922589,0.8255,2923.3,2922.4,3.0]
[1731064922789,0.8255,2923.3,2922.3,0.35670587]
[1731064923219,0.8255,2923.3,2922.4,0.06842476]
[1731064923400,0.8255,2923.3,2922.4,3.35799445]
[1731064923713,0.8255,2923.3,2922.8,3.0]
[1731064924797,0.8255,2923.3,2922.5,0.37147003]
[1731064925093,0.7854,2923.2,2922.3,0.35670587]
[1731064925709,1.87277869,2923.7,2922.8,3.28956969]
[1731064925995,0.8037,2923.7,2922.8,3.28956969]
[1731064926195,0.8037,2923.7,2922.9,0.55]
[1731064926847,0.8037,2923.7,2922.7,0.55]
[1731064927000,0.8037,2923.7,2922.9,0.55]
[1731064927320,1.06907869,2923.7,2922.8,0.355]
[1731064927509,0.7586,2923.6,2922.6,3.0]
[1731064929513,0.7586,2923.6,2922.7,0.61841454]
[1731064929720,0.7586,2923.6,2922.7,0.55]
[1731064930447,0.7832,2923.5,2922.4,0.35672543]
[1731064930657,0.7699,2923.3,2922.3,3.0]
[1731064931027,0.7699,2923.2,2922.4,0.06842494]
[1731064931439,0.7699,2923.2,2922.4,0.42519155]
[1731064931639,0.7699,2923.2,2922.4,0.35676661]
[1731064932023,0.7699,2923.2,2921.9,3.28956969]
[1731064932241,0.7699,2923.2,2922.1,0.55]
[1731064932242,0.8276,2923.1,2922.1,0.55]
[1731064934123,0.8276,2923.1,2922.0,3.68575174]
[1731064934460,0.8276,2923.0,2922.0,0.68575174]
[1731064935315,0.8276,2923.0,2922.1,0.7603]
[1731064935520,0.8276,2923.0,2922.2,0.61843182]
[1731064935745,0.8276,2923.0,2922.4,0.55]
[1731064937873,0.8276,2923.0,2922.1,3.0]
[1731064938072,0.8276,2923.0,2922.0,0.35679477]
[1731064938253,1.06907869,2922.8,2922.0,0.35679477]
[1731064938569,0.7617,2922.7,2921.7,3.28956969]
[1731064938731,0.7815,2922.6,2921.8,0.32895697]
[1731064939667,0.7815,2922.6,2921.8,3.32895697]
[1731064942970,0.7815,2922.6,2921.7,0.3566592]
[1731064943151,0.8047,2922.4,2921.1,0.7573]
[1731064943356,0.8047,2922.4,2921.1,1.11401781]
[1731064943945,0.8047,2922.4,2921.1,0.35671781]
[1731064944160,0.8047,2922.4,2921.1,3.35671781]
[1731064944472,0.8047,2922.4,2921.2,0.66462875]
[1731064946277,0.8047,2922.4,2921.3,0.06845088]
[1731064946961,0.8047,2922.4,2921.2,0.66462875]
[1731064947604,0.8047,2922.4,2921.1,0.35671781]
[1731064947890,0.7798,2922.3,2921.1,0.35671781]
[1731064952820,0.01,2922.1,2921.1,0.35671781]
[1731064952952,0.8055,2922.0,2920.4,3.0]
[1731064953655,0.8055,2922.0,2920.5,0.35680468]
[1731064953846,0.8055,2922.0,2920.6,0.33568047]
[1731064954264,0.8055,2922.0,2920.5,0.35680468]
[1731064954450,0.7969,2921.9,2920.5,0.35680468]
[1731064954651,0.7969,2921.9,2920.2,3.0]
[1731064954890,0.7969,2921.9,2920.3,0.55]
[1731064955093,0.7969,2921.9,2920.3,0.90684223]
[1731064955249,4.06907869,2922.0,2920.4,0.39068422]
[1731064955250,0.7839,2921.7,2920.4,0.39068422]
[1731064961508,3.01,2921.7,2920.3,0.35684223]
[1731064961711,0.8012,2921.6,2920.3,0.35684223]
[1731064962232,0.7912,2921.6,2920.3,0.35684223]
[1731064962531,0.8012,2921.6,2920.3,0.35684223]
[1731064962712,0.808,2921.4,2920.3,0.35684223]
[1731064963213,0.808,2921.4,2920.3,0.81988594]
[1731064963526,0.808,2921.4,2920.3,0.35684223]
[1731064965788,0.808,2921.4,2920.6,0.55]
[1731064966022,0.808,2921.4,2920.6,3.55]
[1731064966193,0.808,2921.4,2920.8,3.28956969]
[1731064966393,0.808,2921.4,2920.9,0.32895697]
[1731064967449,0.808,2921.4,2921.1,3.28956969]
[1731064968310,0.8031,2922.2,2921.1,3.28956969]
[1731064968798,0.8031,2922.2,2921.2,0.55]
[1731064970834,0.8031,2922.2,2921.4,3.28956969]
[1731064970996,0.8031,2922.2,2921.5,0.39740438]
[1731064971200,0.8031,2922.2,2921.7,3.28956969]
[1731064971640,1.0,2922.3,2922.0,3.28956969]
[1731064972336,1.0,2922.3,2922.1,0.55]
[1731064975206,1.0,2922.3,2922.2,0.61843396]
[1731064975401,1.0,2922.3,2922.2,4.76753567]
[1731064975641,0.99886281,2922.3,2922.2,4.69910171]
[1731064977959,0.0093602,2922.4,2922.3,3.56]
[1731064978154,0.0093602,2922.4,2922.3,7.66616969]
[1731064978304,0.0093602,2922.4,2922.3,8.99071961]
[1731064978508,0.0093602,2922.4,2922.3,9.88868279]
[1731064979543,0.0093602,2922.4,2922.3,9.42563908]
[1731064979848,0.0093602,2922.4,2922.3,8.98071961]
[1731064980849,0.0093602,2922.4,2922.3,8.43071961]
[1731064981951,0.0093602,2922.4,2922.3,8.98071961]
[1731064982177,0.0093602,2922.4,2922.3,1.32454992]
[1731064982471,0.0093602,2922.4,2922.1,3.0]
[1731064982829,0.0093602,2922.4,2922.0,4.06246969]
[1731064982830,0.0093602,2922.4,2922.0,3.28956969]
[1731064983329,0.0093602,2922.4,2922.1,0.55]
[1731064984535,0.0093602,2922.4,2922.1,3.55]
[1731064986457,0.0093602,2922.4,2922.1,0.55]
[1731064986631,0.0093602,2922.4,2922.1,0.93395697]
[1731064988746,0.8231,2922.3,2922.1,0.93395697]
[1731064988941,0.8231,2922.3,2921.9,0.55]
[1731064990233,0.8231,2922.3,2921.5,0.68558189]
[1731064990870,0.8231,2922.3,2921.5,0.32895697]
[1731064991174,0.8231,2922.3,2921.1,3.28956969]
[1731064991549,0.8231,2922.3,2921.1,3.7526134]
[1731064991749,0.8231,2922.3,2921.2,0.35672131]
[1731064992434,0.8231,2922.3,2921.3,0.55]
[1731064992670,0.8231,2922.3,2921.3,0.4196291]
[1731064992983,0.8231,2922.3,2921.2,0.35672131]
[1731064993479,0.8231,2922.3,2921.4,3.28956969]
[1731064993972,0.8231,2922.3,2921.5,0.55]
[1731064994135,0.8231,2922.3,2921.3,0.55]
[1731064994966,0.8231,2922.3,2921.2,0.35672131]
[1731064995276,0.0093602,2922.4,2920.8,3.28956969]
[1731064995277,0.8196,2922.1,2920.8,3.28956969]
[1731064995572,0.8196,2922.1,2920.8,3.61852666]
[1731064996278,0.8196,2922.1,2920.9,0.35676999]
[1731064996851,0.8196,2922.1,2921.0,0.55]
[1731065001100,0.8196,2922.1,2921.1,3.28956969]
[1731065001395,0.8196,2922.1,2921.0,0.61845274]
[1731065001396,0.8196,2922.1,2921.4,3.28956969]
[1731065001577,0.8196,2922.1,2921.4,3.67352666]
[1731065010858,0.8196,2922.1,2921.1,0.35668116]
[1731065011096,0.8196,2922.1,2920.8,3.61852666]
[1731065011676,0.8196,2922.1,2920.9,0.35692778]
[1731065012520,0.8196,2922.1,2921.0,0.55]
[1731065012819,0.8196,2922.1,2921.0,1.00254544]
[1731065017614,0.8196,2922.1,2921.2,0.55]
[1731065020419,0.8196,2922.1,2921.4,3.28956969]
[1731065024198,0.8196,2922.1,2921.2,0.55]
[1731065024398,0.8196,2922.1,2921.2,3.55]
[1731065024602,0.8196,2922.1,2921.3,0.71964539]
[1731065026225,0.8196,2922.1,2921.4,0.55]
[1731065029810,0.8196,2922.1,2921.3,0.71964539]
[1731065031618,0.8196,2922.1,2921.1,0.35688423]
[1731065032347,0.8196,2922.1,2921.1,0.55]
[1731065032631,0.7752,2922.0,2921.1,0.55]
[1731065034319,0.8225,2921.9,2921.1,0.55]
[1731065036610,0.7636,2921.8,2921.1,0.55]
[1731065037848,0.7636,2921.8,2921.1,0.98594736]
[1731065038050,0.7636,2921.8,2921.0,0.35692817]
[1731065038251,0.7636,2921.8,2920.9,0.55]
[1731065038411,0.7636,2921.8,2920.8,0.55]
[1731065038611,0.7643,2921.7,2920.7,0.55]
[1731065038839,0.7643,2921.7,2920.6,3.28956969]
[1731065039047,0.7643,2921.6,2920.7,0.36465105]
[1731065039410,0.7643,2921.6,2920.5,0.35694076]
[1731065039742,0.8002,2921.4,2920.5,0.35694076]
[1731065041119,0.8002,2921.4,2920.6,0.55]
[1731065041632,0.8002,2921.4,2920.5,0.35694076]
[1731065045737,0.8002,2921.4,2920.6,3.35803884]
[1731065045939,0.8002,2921.4,2920.7,0.37149796]
[1731065046560,0.8002,2921.4,2920.8,0.0684691]
[1731065046727,0.8002,2921.4,2920.9,3.28956969]
[1731065050854,0.8002,2921.4,2921.2,3.28956969]
[1731065051055,0.775,2922.1,2921.3,0.32895697]
[1731065051372,0.775,2922.1,2921.5,3.28956969]
[1731065053691,0.775,2922.1,2921.6,0.06844901]
[1731065053892,0.775,2922.1,2921.6,0.55]
[1731065056481,0.775,2922.1,2921.5,3.28956969]
[1731065056681,0.775,2922.1,2921.1,0.8189]
[1731065056682,0.775,2922.1,2921.3,0.55]
[1731065056881,0.775,2922.1,2921.4,0.38395697]
[1731065059091,0.775,2922.1,2921.2,3.28956969]
[1731065062311,0.775,2922.1,2921.3,0.06845199]
[1731065062491,0.775,2922.1,2921.5,3.28956969]
[1731065063192,0.775,2922.1,2921.6,0.55]
[1731065063573,0.775,2922.1,2921.8,3.28956969]
[1731065063910,0.775,2922.1,2921.9,0.32895697]
[1731065064721,0.775,2922.1,2921.6,0.55]
[1731065070339,0.775,2922.1,2921.9,0.55]
[1731065071631,0.775,2922.1,2921.8,3.28956969]
[1731065071632,0.775,2922.1,2921.5,6.28956969]
[1731065071851,0.775,2922.1,2921.7,0.55]
[1731065074020,0.775,2922.1,2921.6,0.55]
[1731065074214,0.775,2922.1,2921.8,0.55]
[1731065077159,0.775,2922.1,2921.8,3.83956969]
[1731065077938,0.7714,2922.3,2921.8,3.83956969]
[1731065078124,0.0093602,2922.4,2922.1,3.28956969]
[1731065078361,0.0093602,2922.4,2922.2,0.55]
[1731065078527,0.0093602,2922.4,2922.3,0.38395697]
[1731065079275,0.0093602,2922.4,2922.3,0.93395697]
[1731065085343,0.0093602,2922.4,2922.3,0.92395697]
[1731065089441,0.0093602,2922.4,2922.1,3.28956969]
[1731065090452,0.0093602,2922.4,2921.8,4.04576969]
[1731065090676,0.7643,2922.3,2922.0,0.55]
[1731065090986,0.7643,2922.3,2921.6,3.35683532]
[1731065091160,0.7643,2922.3,2921.6,3.0]
[1731065091367,0.7643,2922.3,2921.8,3.28956969]
[1731065092589,0.0093602,2922.4,2921.9,0.55]
[1731065092755,0.0093602,2922.4,2922.1,3.28956969]
[1731065092957,0.0093602,2922.4,2922.2,0.55]
[1731065096887,0.0093602,2922.4,2922.0,0.55]
[1731065098783,0.7635,2922.3,2921.9,3.0]
[1731065101126,0.7635,2922.3,2922.0,0.06843802]
[1731065101416,0.7635,2922.3,2921.9,3.0]
[1731065101810,0.7635,2922.3,2921.8,3.28956969]
[1731065103408,0.7635,2922.3,2922.0,1.51612189]
[1731065103582,0.7635,2922.3,2922.2,1.51612189]
[1731065105316,0.0093602,2922.4,2922.2,1.51612189]
[1731065107701,0.0093602,2922.4,2922.3,5.63626362]
[1731065108032,0.0093602,2922.4,2922.3,6.36610082]
[1731065108394,0.0093602,2922.4,2922.3,5.86439044]
[1731065108948,0.0093602,2922.4,2922.3,5.31439044]
[1731065109443,0.0093602,2922.4,2922.3,7.08143568]
[1731065111322,0.0093602,2922.4,2922.3,6.28316713]
[1731065111529,0.0093602,2922.4,2922.3,3.28316713]
[1731065114776,0.0093602,2922.4,2922.0,3.28316713]
[1731065116533,0.7819,2922.3,2921.7,0.35681307]
[1731065116852,0.7819,2922.3,2921.5,3.28316713]
[1731065117065,0.7819,2922.3,2921.5,3.63983719]
[1731065117239,0.96821737,2922.3,2921.5,3.63983719]
[1731065120673,0.7819,2922.3,2921.5,3.63983719]
[1731065124346,0.7819,2922.3,2921.8,3.28316713]
[1731065125337,0.7819,2922.3,2922.1,3.28316713]
[1731065125541,0.0093602,2922.4,2921.6,0.55]
[1731065125778,0.0093602,2922.4,2921.7,3.28316713]
[1731065125779,0.7591,2922.3,2921.7,3.28316713]
[1731065126078,0.7591,2922.3,2921.7,4.07058953]
[1731065126374,0.7591,2922.3,2921.7,4.00215085]
[1731065127840,0.7591,2922.3,2921.7,3.28316713]
[1731065129426,0.7591,2922.3,2922.0,3.28316713]
[1731065131428,0.0093602,2922.4,2922.0,3.28316713]
[1731065132717,0.0093602,2922.4,2922.3,3.28316713]
[1731065132893,0.0093602,2922.4,2922.3,3.999587]
[1731065133239,0.0093602,2922.4,2922.3,3.28316713]
[1731065134536,0.8229,2922.3,2922.0,3.28316713]
[1731065134843,0.8229,2922.3,2921.9,0.7959]
[1731065134844,0.8229,2922.3,2921.8,3.55]
[1731065135635,0.8229,2922.3,2921.8,3.0]
[1731065136130,0.8229,2922.3,2921.7,3.28316713]
[1731065147338,0.8229,2922.3,2922.2,1.51591146]
[1731065148215,0.8229,2922.3,2921.8,0.7831]
[1731065148216,0.8229,2922.3,2922.0,1.51591146]
[1731065149035,0.8229,2922.3,2921.8,1.51591146]
[1731065150643,0.8229,2922.3,2921.5,0.35687489]
[1731065151142,0.7818,2922.2,2921.3,1.51591146]
[1731065151326,0.7818,2922.0,2921.0,3.28664081]
[1731065151531,0.7818,2922.0,2921.0,3.64357447]
[1731065152853,0.7818,2922.0,2921.0,3.28664081]
[1731065153807,0.7818,2922.0,2921.0,3.64357603]
[1731065160149,0.7818,2922.0,2921.3,3.28664081]
[1731065160311,0.7757,2921.9,2921.3,3.28664081]
[1731065161024,0.7757,2921.9,2921.7,3.28664081]
[1731065162165,0.8038,2922.1,2921.7,3.28664081]
[1731065162892,0.8038,2922.3,2921.8,0.55]
[1731065163060,0.8038,2922.3,2921.8,0.93366408]
[1731065164347,0.8038,2922.3,2921.4,0.7524]
[1731065164348,0.8038,2922.3,2921.4,3.28664081]
[1731065166596,0.8038,2922.3,2921.3,0.55]
[1731065166792,0.8038,2922.3,2921.3,3.55]
[1731065170495,0.8038,2922.3,2921.3,0.55]
[1731065174771,0.8038,2922.3,2921.2,3.28664081]
[1731065175007,0.7992,2922.1,2921.2,3.28664081]
[1731065175392,0.7992,2922.1,2921.3,1.51691756]
[1731065179616,0.7937,2922.0,2921.3,1.51691756]
[1731065179774,0.7937,2922.0,2921.0,3.0]
[1731065179977,0.7937,2922.0,2921.3,1.51691756]
[1731065180485,0.785,2921.9,2921.3,1.51691756]
[1731065183615,0.785,2921.9,2921.5,1.51691756]
[1731065185403,0.785,2921.9,2921.3,1.51691756]
[1731065185589,0.785,2921.9,2921.5,1.51691756]
[1731065188024,0.785,2921.9,2921.2,1.51691756]
[1731065188516,0.97069135,2921.9,2921.2,1.51691756]
[1731065189316,0.785,2921.9,2921.5,1.51691756]
[1731065189682,0.785,2921.9,2921.7,1.51691756]
[1731065192140,0.784,2922.2,2921.7,1.51691756]
[1731065192442,0.784,2922.2,2922.0,1.51691756]
[1731065194131,0.784,2922.2,2921.8,1.51691756]
[1731065197303,0.784,2922.2,2922.0,1.51691756]
[1731065197495,0.8396602,2922.4,2922.0,1.51691756]
[1731065199520,0.8396602,2922.4,2922.2,1.51691756]
[1731065201568,0.8396602,2922.4,2922.0,1.51691756]
[1731065204836,0.8396602,2922.4,2921.7,0.7654]
[1731065205037,0.8396602,2922.4,2921.7,1.51691756]
[1731065205256,1.03081757,2922.4,2921.7,1.51691756]
[1731065205556,0.8396602,2922.4,2921.9,1.51691756]
[1731065207156,0.8396602,2922.4,2922.1,1.51691756]
[1731065208585,0.8396602,2922.4,2921.9,1.51691756]
[1731065210490,0.0093602,2922.4,2922.1,1.51691756]
[1731065212904,0.793,2922.3,2921.6,0.7545]
[1731065213054,0.793,2922.3,2921.9,1.51691756]
[1731065215890,0.793,2922.3,2921.4,1.51691756]
[1731065217372,1.01862737,2922.2,2921.4,1.51691756]
[1731065217687,0.8312,2922.2,2921.4,1.51691756]
[1731065217886,0.8312,2922.2,2921.6,1.51691756]
[1731065220294,0.8312,2922.2,2921.4,1.51691756]
[1731065221161,0.8312,2922.2,2921.6,1.51691756]
[1731065222202,0.8312,2922.2,2921.4,1.51691756]
[1731065222763,1.02244737,2922.2,2921.4,1.51691756]
[1731065223566,1.02244737,2922.2,2921.6,1.51691756]
[1731065226003,1.02244737,2922.2,2920.8,7.92771904]
[1731065226004,0.7822,2922.0,2921.0,0.55]
[1731065226165,0.7822,2922.0,2921.3,1.51691756]
[1731065226514,0.7822,2921.9,2921.3,1.51691756]
[1731065227296,0.7822,2921.9,2921.5,1.51691756]
[1731065230178,0.7822,2921.9,2920.8,0.35612234]
[1731065230513,0.8161,2921.7,2921.0,1.51691756]
[1731065231509,0.8161,2921.7,2921.4,1.51691756]
[1731065232866,0.7722,2921.9,2921.6,1.51691756]
[1731065233072,0.7722,2921.9,2921.8,1.51691756]
[1731065233804,0.7722,2921.9,2921.6,1.51691756]
[1731065234709,0.7722,2921.9,2921.4,1.51691756]
[1731065236212,0.7722,2921.9,2920.8,1.14804655]
[1731065236409,0.7722,2921.9,2921.2,1.51691756]
[1731065236614,0.8051,2921.7,2921.2,1.51691756]
[1731065236819,0.8051,2921.7,2921.4,1.51691756]
[1731065237684,0.8051,2921.7,2921.2,1.51691756]
[1731065239977,0.8051,2921.7,2921.4,1.51691756]
[1731065240942,0.7832,2922.0,2921.6,1.51691756]
[1731065241093,0.7832,2922.0,2921.6,0.30338351]
[1731065241292,0.7832,2922.0,2921.4,1.51691756]
[1731065242094,0.7832,2922.0,2921.6,1.51691756]
[1731065243318,0.7832,2922.0,2920.6,3.35595599]
[1731065243617,0.7961,2921.8,2920.6,3.35595599]